fUSD/lending_fUSD_20240420
["ID","MTS","AMOUNT","RATE_DAILY","PERIOD"]
[323023996,1713600642706,-500.0,0.00015068,2]
[323023997,1713600642715,-500.0,0.00015068,2]
[323023998,1713600642725,-763.76,0.00015068,2]
[323023999,1713600642734,-500.0,0.00015068,2]
[323024000,1713600642744,-500.0,0.00015068,2]
[323024001,1713600642753,-500.0,0.00015068,2]
[323024002,1713600642764,-500.0,0.00015068,2]
[323024004,1713600642773,-500.0,0.00015068,2]
[323024006,1713600642783,-500.0,0.00015068,2]
[323024007,1713600642795,-500.0,0.00015068,2]
[323024009,1713600642804,-500.0,0.00015068,2]
[323024010,1713600642813,-991.74,0.00015068,2]
[323024011,1713600642823,-500.0,0.00015068,2]
[323024012,1713600642834,-532.54,0.00015068,2]
[323024013,1713600642843,-500.0,0.00015068,2]
[323024014,1713600642852,-679.73,0.00015068,2]
[323024015,1713600642862,-694.39,0.00015068,2]
[323024016,1713600642872,-500.0,0.00015068,2]
[323024017,1713600642884,-500.0,0.00015068,2]
[323024018,1713600642894,-500.0,0.00015068,2]
[323024019,1713600642903,-500.0,0.00015068,2]
[323024020,1713600642912,-500.0,0.00015068,2]
[323024021,1713600642921,-594.56,0.00015068,2]
[323024022,1713600642930,-943.0,0.00015068,2]
[323024023,1713600642940,-500.0,0.00015068,2]
[323024024,1713600642950,-635.57,0.00015068,2]
[323024025,1713600642960,-500.0,0.00015068,2]
[323024026,1713600642970,-500.0,0.00015068,2]
[323024027,1713600642979,-500.0,0.00015068,2]
[323024028,1713600642989,-500.0,0.00015068,2]
[323024029,1713600642998,-699.91,0.00015068,2]
[323024030,1713600643007,-500.0,0.00015068,2]
[323024031,1713600643017,-500.0,0.00015068,2]
[323024032,1713600643026,-500.0,0.00015068,2]
[323024033,1713600643036,-526.74,0.00015068,2]
[323024034,1713600643049,-500.0,0.00015068,2]
[323024035,1713600643058,-500.0,0.00015068,2]
[323024036,1713600643068,-500.0,0.00015068,2]
[323024037,1713600643078,-256.669118,0.00015068,2]
[323024038,1713600643087,-500.0,0.00015068,2]
[323024039,1713600643097,-500.0,0.00015068,2]
[323024040,1713600643106,-155.312991,0.00015068,2]
[323024041,1713600643116,-500.0,0.00015068,2]
[323024042,1713600643125,-500.0,0.00015068,2]
[323024043,1713600643134,-500.0,0.00015068,2]
[323024044,1713600643143,-500.0,0.00015068,2]
[323024045,1713600643153,-631.94593006,0.00015068,2]
[323024046,1713600643162,-823.75,0.00015068,2]
[323024047,1713600643171,-500.0,0.00015068,2]
[323024048,1713600643180,-500.0,0.00015068,2]
[323024049,1713600643189,-500.0,0.00015068,2]
[323024050,1713600643198,-500.0,0.00015068,2]
[323024051,1713600643207,-500.0,0.00015068,2]
[323024052,1713600643217,-500.0,0.00015068,2]
[323024053,1713600643226,-539.16,0.00015068,2]
[323024054,1713600643235,-500.0,0.00015068,2]
[323024055,1713600643244,-640.13,0.00015068,2]
[323024056,1713600643253,-500.0,0.00015068,2]
[323024057,1713600643262,-635.01,0.00015068,2]
[323024058,1713600643271,-500.0,0.00015068,2]
[323024059,1713600643280,-507.97,0.00015068,2]
[323024060,1713600643289,-500.0,0.00015068,2]
[323024061,1713600643299,-500.0,0.00015068,2]
[323024062,1713600643309,-512.95,0.00015068,2]
[323024063,1713600643318,-500.0,0.00015068,2]
[323024064,1713600643327,-559.9,0.00015068,2]
[323024065,1713600643336,-500.0,0.00015068,2]
[323024066,1713600643345,-810.63,0.00015068,2]
[323024067,1713600643354,-618.87,0.00015068,2]
[323024068,1713600643364,-500.0,0.00015068,2]
[323024069,1713600643373,-500.0,0.00015068,2]
[323024070,1713600643383,-500.0,0.00015068,2]
[323024071,1713600643392,-556.7,0.00015068,2]
[323024072,1713600643401,-503.32570621,0.00015068,2]
[323024073,1713600643411,-500.0,0.00015068,2]
[323024074,1713600643420,-500.0,0.00015068,2]
[323024075,1713600643429,-846.56,0.00015068,2]
[323024076,1713600643439,-1494.16,0.00015068,2]
[323024077,1713600643449,-500.0,0.00015068,2]
[323024078,1713600643459,-500.0,0.00015068,2]
[323024079,1713600643469,-399.177688,0.00015068,2]
[323024080,1713600643478,-399.177688,0.00015068,2]
[323024081,1713600643488,-500.0,0.00015068,2]
[323024082,1713600643497,-399.177688,0.00015068,2]
[323024083,1713600643506,-500.0,0.00015068,2]
[323024085,1713600643515,-500.0,0.00015068,2]
[323024087,1713600643524,-588.32,0.00015068,2]
[323024089,1713600643534,-797.28,0.00015068,2]
[323024091,1713600643543,-500.0,0.00015068,2]
[323024092,1713600643554,-399.177688,0.00015068,2]
[323024093,1713600643563,-166.91005396,0.00015068,2]
[323024095,1713600643573,-399.177688,0.00015068,2]
[323024096,1713600643582,-399.177698,0.00015068,2]
[323024097,1713600643591,-500.0,0.00015068,2]
[323024098,1713600643600,-1382.37,0.00015068,2]
[323024099,1713600643610,-500.0,0.00015068,2]
[323024100,1713600643619,-500.0,0.00015068,2]
[323024101,1713600643629,-569.44,0.00015068,2]
[323024102,1713600643638,-1432.46,0.00015068,2]
[323024103,1713600643647,-500.0,0.00015068,2]
[323024104,1713600643656,-500.0,0.00015068,2]
[323024105,1713600643666,-874.03,0.00015068,2]
[323024106,1713600643675,-500.0,0.00015068,2]
[323024107,1713600643685,-500.0,0.00015068,2]
[323024108,1713600643694,-998.78,0.00015068,2]
[323024109,1713600643703,-500.0,0.00015068,2]
[323024110,1713600643713,-500.0,0.00015068,2]
[323024111,1713600643722,-500.0,0.00015068,2]
[323024112,1713600643731,-365.26804493,0.00015068,2]
[323024113,1713600643741,-500.0,0.00015068,2]
[323024114,1713600643751,-500.0,0.00015068,2]
[323024115,1713600643761,-500.0,0.00015068,2]
[323024116,1713600643771,-500.0,0.00015068,2]
[323024117,1713600643780,-500.0,0.00015068,2]
[323024118,1713600643790,-698.54,0.00015068,2]
[323024119,1713600643801,-500.0,0.00015068,2]
[323024120,1713600643810,-960.25,0.00015068,2]
[323024121,1713600643819,-500.0,0.00015068,2]
[323024122,1713600643830,-500.0,0.00015068,2]
[323024123,1713600643840,-500.0,0.00015068,2]
[323024124,1713600643849,-1065.63,0.00015068,2]
[323024125,1713600643859,-500.0,0.00015068,2]
[323024126,1713600643869,-500.0,0.00015068,2]
[323024127,1713600643883,-500.0,0.00015068,2]
[323024128,1713600643893,-1403.4,0.00015068,2]
[323024129,1713600643902,-500.0,0.00015068,2]
[323024130,1713600643912,-177.27242034,0.00015068,2]
[323024131,1713600643921,-150.0,0.00015068,2]
[323024132,1713600643930,-500.0,0.00015068,2]
[323024133,1713600643940,-500.0,0.00015068,2]
[323024134,1713600643952,-504.72399977,0.00015068,2]
[323024135,1713600643962,-500.0,0.00015068,2]
[323024136,1713600643971,-516.78,0.00015068,2]
[323024137,1713600643980,-1348.73,0.00015068,2]
[323024138,1713600643989,-500.0,0.00015068,2]
[323024139,1713600643998,-1403.1,0.00015068,2]
[323024140,1713600644008,-500.0,0.00015068,2]
[323024141,1713600644018,-878.26,0.00015068,2]
[323024142,1713600644027,-500.0,0.00015068,2]
[323024143,1713600644037,-500.0,0.00015068,2]
[323024144,1713600644047,-500.0,0.00015068,2]
[323024145,1713600644057,-691.1,0.00015068,2]
[323024146,1713600644067,-500.0,0.00015068,2]
[323024147,1713600644077,-500.0,0.00015068,2]
[323024148,1713600644087,-500.0,0.00015068,2]
[323024149,1713600644097,-500.0,0.00015068,2]
[323024150,1713600644107,-500.0,0.00015068,2]
[323024151,1713600644116,-939.17,0.00015068,2]
[323024152,1713600644125,-742.21,0.00015068,2]
[323024153,1713600644134,-500.0,0.00015068,2]
[323024154,1713600644143,-600.65,0.00015068,2]
[323024155,1713600644152,-500.0,0.00015068,2]
[323024156,1713600644162,-500.0,0.00015068,2]
[323024157,1713600644171,-500.0,0.00015068,2]
[323024158,1713600644181,-183.61222516,0.00015068,2]
[323024159,1713600644190,-1145.76,0.00015068,2]
[323024160,1713600644200,-500.0,0.00015068,2]
[323024161,1713600644209,-1292.49,0.00015068,2]
[323024162,1713600644219,-500.0,0.00015068,2]
[323024163,1713600644228,-500.0,0.00015068,2]
[323024164,1713600644237,-500.0,0.00015068,2]
[323024165,1713600644246,-151.0,0.00015068,2]
[323024166,1713600644255,-151.0,0.00015068,2]
[323024167,1713600644264,-500.0,0.00015068,2]
[323024168,1713600644273,-151.0,0.00015068,2]
[323024169,1713600644282,-500.0,0.00015068,2]
[323024170,1713600644291,-680.05,0.00015068,2]
[323024171,1713600644303,-500.0,0.00015068,2]
[323024172,1713600644312,-500.0,0.00015068,2]
[323024173,1713600644321,-500.0,0.00015068,2]
[323024174,1713600644331,-838.36,0.00015068,2]
[323024175,1713600644340,-1329.15,0.00015068,2]
[323024176,1713600644349,-500.0,0.00015068,2]
[323024177,1713600644359,-500.0,0.00015068,2]
[323024178,1713600644368,-500.0,0.00015068,2]
[323024179,1713600644377,-500.0,0.00015068,2]
[323024180,1713600644386,-500.0,0.00015068,2]
[323024181,1713600644395,-1511.78,0.00015068,2]
[323024182,1713600644404,-500.0,0.00015068,2]
[323024183,1713600644413,-500.0,0.00015068,2]
[323024184,1713600644422,-500.0,0.00015068,2]
[323024185,1713600644432,-151.0,0.00015068,2]
[323024186,1713600644441,-500.0,0.00015068,2]
[323024187,1713600644450,-151.0,0.00015068,2]
[323024188,1713600644459,-233.204147,0.00015068,2]
[323024189,1713600644469,-1201.79,0.00015068,2]
[323024190,1713600644478,-500.0,0.00015068,2]
[323024191,1713600644487,-915.17,0.00015068,2]
[323024192,1713600644496,-500.0,0.00015068,2]
[323024193,1713600644505,-500.0,0.00015068,2]
[323024194,1713600644515,-622.12,0.00015068,2]
[323024195,1713600644525,-500.0,0.00015068,2]
[323024196,1713600644534,-500.0,0.00015068,2]
[323024197,1713600644543,-904.69,0.00015068,2]
[323024198,1713600644554,-500.0,0.00015068,2]
[323024199,1713600644563,-500.0,0.00015068,2]
[323024200,1713600644572,-500.0,0.00015068,2]
[323024201,1713600644581,-500.0,0.00015068,2]
[323024202,1713600644590,-500.0,0.00015068,2]
[323024203,1713600644599,-500.0,0.00015068,2]
[323024204,1713600644609,-196.970335,0.00015068,2]
[323024205,1713600644619,-1084.71,0.00015068,2]
[323024206,1713600644630,-500.0,0.00015068,2]
[323024207,1713600644639,-500.0,0.00015068,2]
[323024208,1713600644650,-500.0,0.00015068,2]
[323024209,1713600644661,-500.0,0.00015068,2]
[323024210,1713600644672,-1780.76,0.00015068,2]
[323024211,1713600644682,-500.0,0.00015068,2]
[323024212,1713600644692,-500.0,0.00015068,2]
[323024213,1713600644701,-500.0,0.00015068,2]
[323024214,1713600644711,-500.0,0.00015068,2]
[323024215,1713600644720,-500.0,0.00015068,2]
[323024216,1713600644730,-500.0,0.00015068,2]
[323024217,1713600644740,-764.61,0.00015068,2]
[323024218,1713600644749,-928.86,0.00015068,2]
[323024219,1713600644758,-500.0,0.00015068,2]
[323024220,1713600644767,-500.0,0.00015068,2]
[323024221,1713600644776,-260.84049601,0.00015068,2]
[323024222,1713600644786,-500.0,0.00015068,2]
[323024223,1713600644795,-500.0,0.00015068,2]
[323024224,1713600644804,-636.72,0.00015068,2]
[323024225,1713600644814,-1424.52,0.00015068,2]
[323024226,1713600644823,-150.0,0.00015068,2]
[323024227,1713600644832,-500.0,0.00015068,2]
[323024228,1713600644841,-500.0,0.00015068,2]
[323024229,1713600644850,-500.0,0.00015068,2]
[323024230,1713600644860,-500.0,0.00015068,2]
[323024231,1713600644871,-500.0,0.00015068,2]
[323024232,1713600644881,-1186.32,0.00015068,2]
[323024233,1713600644891,-500.0,0.00015068,2]
[323024234,1713600644900,-500.0,0.00015068,2]
[323024235,1713600644911,-510.36,0.00015068,2]
[323024236,1713600644920,-500.0,0.00015068,2]
[323024237,1713600644929,-2250.4,0.00015068,2]
[323024238,1713600644938,-597.51,0.00015068,2]
[323024239,1713600644950,-514.73,0.00015068,2]
[323024240,1713600644959,-1280.48,0.00015068,2]
[323024241,1713600644968,-500.0,0.00015068,2]
[323024242,1713600644977,-500.0,0.00015068,2]
[323024243,1713600644986,-500.0,0.00015068,2]
[323024244,1713600644996,-500.0,0.00015068,2]
[323024245,1713600645273,-500.0,0.00015068,2]
[323024246,1713600645282,-500.0,0.00015068,2]
[323024247,1713600645292,-1222.91,0.00015068,2]
[323024248,1713600645302,-500.0,0.00015068,2]
[323024249,1713600645311,-500.0,0.00015068,2]
[323024250,1713600645320,-500.0,0.00015068,2]
[323024251,1713600645330,-500.0,0.00015068,2]
[323024252,1713600645338,-500.0,0.00015068,2]
[323024253,1713600645347,-746.66,0.00015068,2]
[323024254,1713600645357,-620.12,0.00015068,2]
[323024255,1713600645366,-877.27,0.00015068,2]
[323024256,1713600645375,-864.37,0.00015068,2]
[323024257,1713600645385,-500.0,0.00015068,2]
[323024258,1713600645394,-1668.06,0.00015068,2]
[323024259,1713600645405,-500.0,0.00015068,2]
[323024260,1713600645414,-500.0,0.00015068,2]
[323024261,1713600645423,-500.0,0.00015068,2]
[323024262,1713600645432,-500.0,0.00015068,2]
[323024263,1713600645441,-500.0,0.00015068,2]
[323024264,1713600645450,-2212.57,0.00015068,2]
[323024265,1713600645459,-500.0,0.00015068,2]
[323024266,1713600645469,-507.51,0.00015068,2]
[323024267,1713600645478,-500.0,0.00015068,2]
[323024268,1713600645487,-500.0,0.00015068,2]
[323024269,1713600645496,-547.3,0.00015068,2]
[323024270,1713600645505,-500.0,0.00015068,2]
[323024271,1713600645514,-938.07,0.00015068,2]
[323024272,1713600645523,-1238.6,0.00015068,2]
[323024273,1713600645533,-412.43503966,0.00015068,2]
[323024274,1713600645542,-500.0,0.00015068,2]
[323024275,1713600645553,-500.0,0.00015068,2]
[323024276,1713600645562,-500.0,0.00015068,2]
[323024277,1713600645572,-502.08,0.00015068,2]
[323024278,1713600645582,-500.0,0.00015068,2]
[323024279,1713600645591,-500.0,0.00015068,2]
[323024280,1713600645600,-591.33,0.00015068,2]
[323024281,1713600645610,-500.0,0.00015068,2]
[323024282,1713600645619,-1402.99,0.00015068,2]
[323024283,1713600645628,-15276.58,0.00015068,2]
[323024284,1713600645637,-165.99476067,0.00015068,2]
[323024285,1713600645646,-500.0,0.00015068,2]
[323024286,1713600645655,-1406.46,0.00015068,2]
[323024287,1713600645665,-1369.96,0.00015068,2]
[323024288,1713600645674,-500.0,0.00015068,2]
[323024289,1713600645683,-666.26,0.00015068,2]
[323024290,1713600645693,-630.08,0.00015068,2]
[323024291,1713600645702,-500.0,0.00015068,2]
[323024292,1713600645711,-500.0,0.00015068,2]
[323024293,1713600645721,-500.0,0.00015068,2]
[323024294,1713600645730,-163.33353209,0.00015068,2]
[323024295,1713600645740,-151.0,0.00015068,2]
[323024296,1713600645749,-289.789043,0.00015068,2]
[323024297,1713600645759,-2964.79,0.00015068,2]
[323024298,1713600645768,-1271.21,0.00015068,2]
[323024299,1713600645778,-1619.96,0.00015068,2]
[323024300,1713600645787,-1488.04,0.00015068,2]
[323024301,1713600645799,-500.0,0.00015068,2]
[323024302,1713600645808,-1687.02,0.00015068,2]
[323024303,1713600645818,-500.0,0.00015068,2]
[323024304,1713600645827,-863.15,0.00015068,2]
[323024305,1713600645837,-500.0,0.00015068,2]
[323024306,1713600645847,-966.71,0.00015068,2]
[323024307,1713600645856,-162.229839,0.00015068,2]
[323024308,1713600645865,-162.229839,0.00015068,2]
[323024309,1713600645876,-500.0,0.00015068,2]
[323024310,1713600645886,-162.229839,0.00015068,2]
[323024311,1713600645896,-162.229846,0.00015068,2]
[323024312,1713600645905,-970.48,0.00015068,2]
[323024313,1713600645914,-2101.98,0.00015068,2]
[323024314,1713600645925,-2003.71,0.00015068,2]
[323024315,1713600645935,-500.0,0.00015068,2]
[323024316,1713600645945,-224.73016207,0.00015068,2]
[323024317,1713600645962,-2415.01,0.00015068,2]
[323024318,1713600645972,-529.25,0.00015068,2]
[323024319,1713600645981,-500.0,0.00015068,2]
[323024320,1713600645991,-500.0,0.00015068,2]
[323024321,1713600646000,-500.0,0.00015068,2]
[323024322,1713600646010,-500.0,0.00015068,2]
[323024323,1713600646020,-500.0,0.00015068,2]
[323024324,1713600646029,-843.06,0.00015068,2]
[323024325,1713600646038,-1114.32,0.00015068,2]
[323024326,1713600646047,-500.0,0.00015068,2]
[323024327,1713600646056,-1383.89,0.00015068,2]
[323024328,1713600646065,-724.33,0.00015068,2]
[323024329,1713600646075,-504.88,0.00015068,2]
[323024330,1713600646084,-500.0,0.00015068,2]
[323024331,1713600646093,-20967.53,0.00015068,2]
[323024332,1713600646103,-500.0,0.00015068,2]
[323024333,1713600646112,-795.48,0.00015068,2]
[323024334,1713600646121,-500.0,0.00015068,2]
[323024335,1713600646130,-500.0,0.00015068,2]
[323024336,1713600646140,-500.0,0.00015068,2]
[323024337,1713600646149,-500.0,0.00015068,2]
[323024338,1713600646158,-1738.96,0.00015068,2]
[323024339,1713600646167,-500.0,0.00015068,2]
[323024340,1713600646176,-2301.33,0.00015068,2]
[323024341,1713600646185,-500.0,0.00015068,2]
[323024342,1713600646194,-1838.33,0.00015068,2]
[323024343,1713600646203,-500.0,0.00015068,2]
[323024344,1713600646213,-630.16,0.00015068,2]
[323024345,1713600646222,-500.0,0.00015068,2]
[323024346,1713600646231,-3823.01,0.00015068,2]
[323024347,1713600646241,-429.1823708,0.00015068,2]
[323024348,1713600646250,-500.0,0.00015068,2]
[323024349,1713600646259,-1424.48,0.00015068,2]
[323024350,1713600646269,-337.675826,0.00015068,2]
[323024351,1713600646278,-337.675826,0.00015068,2]
[323024352,1713600646290,-500.0,0.00015068,2]
[323024353,1713600646301,-4704.64,0.00015068,2]
[323024354,1713600646312,-2323.83,0.00015068,2]
[323024355,1713600646322,-500.0,0.00015068,2]
[323024356,1713600646333,-337.675826,0.00015068,2]
[323024357,1713600646344,-337.675834,0.00015068,2]
[323024358,1713600646354,-2338.74,0.00015068,2]
[323024359,1713600646364,-1062.83,0.00015068,2]
[323024360,1713600646374,-500.0,0.00015068,2]
[323024361,1713600646384,-500.0,0.00015068,2]
[323024363,1713600646394,-500.0,0.00015068,2]
[323024365,1713600646403,-1313.93,0.00015068,2]
[323024367,1713600646412,-500.0,0.00015068,2]
[323024369,1713600646421,-1716.47,0.00015068,2]
[323024371,1713600646430,-2688.18,0.00015068,2]
[323024372,1713600646440,-500.0,0.00015068,2]
[323024373,1713600646449,-837.93,0.00015068,2]
[323024374,1713600646459,-14404.44,0.00015068,2]
[323024375,1713600646469,-500.0,0.00015068,2]
[323024376,1713600646478,-17610.62,0.00015068,2]
[323024377,1713600646488,-595.82,0.00015068,2]
[323024378,1713600646498,-1099.48,0.00015068,2]
[323024379,1713600646508,-500.0,0.00015068,2]
[323024380,1713600646517,-4596.05,0.00015068,2]
[323024381,1713600646527,-1186.55,0.00015068,2]
[323024382,1713600646537,-500.0,0.00015068,2]
[323024383,1713600646547,-1066.64,0.00015068,2]
[323024384,1713600646557,-500.0,0.00015068,2]
[323024385,1713600646567,-957.16,0.00015068,2]
[323024386,1713600646576,-248.116645,0.00015068,2]
[323024387,1713600646585,-248.116645,0.00015068,2]
[323024388,1713600646595,-500.0,0.00015068,2]
[323024389,1713600646605,-500.0,0.00015068,2]
[323024390,1713600646614,-958.42,0.00015068,2]
[323024391,1713600646624,-520.4,0.00015068,2]
[323024392,1713600646634,-248.116645,0.00015068,2]
[323024393,1713600646644,-248.116641,0.00015068,2]
[323024394,1713600646653,-500.0,0.00015068,2]
[323024395,1713600646663,-939.83,0.00015068,2]
[323024396,1713600646673,-1645.83,0.00015068,2]
[323024397,1713600646683,-1251.61,0.00015068,2]
[323024398,1713600646693,-500.0,0.00015068,2]
[323024399,1713600646703,-500.0,0.00015068,2]
[323024400,1713600646713,-500.0,0.00015068,2]
[323024401,1713600646723,-500.0,0.00015068,2]
[323024402,1713600646734,-805.0,0.00015068,2]
[323024403,1713600646743,-500.0,0.00015068,2]
[323024404,1713600646753,-500.0,0.00015068,2]
[323024405,1713600646762,-967.62,0.00015068,2]
[323024406,1713600646771,-500.0,0.00015068,2]
[323024407,1713600646781,-500.0,0.00015068,2]
[323024408,1713600646791,-500.0,0.00015068,2]
[323024409,1713600646802,-664.54,0.00015068,2]
[323024410,1713600646812,-1103.38,0.00015068,2]
[323024411,1713600646823,-500.0,0.00015068,2]
[323024412,1713600646832,-500.0,0.00015068,2]
[323024413,1713600646842,-500.0,0.00015068,2]
[323024414,1713600646852,-1491.73,0.00015068,2]
[323024415,1713600646861,-2579.95,0.00015068,2]
[323024416,1713600646871,-500.0,0.00015068,2]
[323024417,1713600646884,-500.0,0.00015068,2]
[323024418,1713600646894,-4454.84,0.00015068,2]
[323024419,1713600646903,-805.34,0.00015068,2]
[323024420,1713600646913,-608.31,0.00015068,2]
[323024421,1713600646924,-618.01,0.00015068,2]
[323024422,1713600646934,-500.0,0.00015068,2]
[323024423,1713600646945,-500.0,0.00015068,2]
[323024424,1713600646956,-2718.9,0.00015068,2]
[323024425,1713600646966,-523.44,0.00015068,2]
[323024426,1713600646976,-977.7,0.00015068,2]
[323024427,1713600646986,-1687.04,0.00015068,2]
[323024428,1713600646995,-2994.19,0.00015068,2]
[323024429,1713600647005,-1140.09,0.00015068,2]
[323024430,1713600647014,-500.0,0.00015068,2]
[323024431,1713600647024,-500.0,0.00015068,2]
[323024432,1713600647033,-454.36501665,0.00015068,2]
[323024433,1713600647042,-1872.67,0.00015068,2]
[323024434,1713600647053,-806.64,0.00015068,2]
[323024435,1713600647062,-798.54,0.00015068,2]
[323024436,1713600647071,-500.0,0.00015068,2]
[323024437,1713600647080,-500.0,0.00015068,2]
[323024438,1713600647090,-500.0,0.00015068,2]
[323024439,1713600647099,-519.09,0.00015068,2]
[323024440,1713600647110,-500.0,0.00015068,2]
[323024441,1713600647122,-500.0,0.00015068,2]
[323024442,1713600647132,-500.0,0.00015068,2]
[323024443,1713600647142,-500.0,0.00015068,2]
[323024444,1713600647153,-500.0,0.00015068,2]
[323024445,1713600647164,-807.87,0.00015068,2]
[323024446,1713600647173,-649.35,0.00015068,2]
[323024447,1713600647183,-1038.56,0.00015068,2]
[323024448,1713600647192,-1650.75,0.00015068,2]
[323024449,1713600647202,-500.0,0.00015068,2]
[323024450,1713600647211,-500.0,0.00015068,2]
[323024451,1713600647221,-2183.12,0.00015068,2]
[323024452,1713600647230,-674.74,0.00015068,2]
[323024453,1713600647239,-1532.32,0.00015068,2]
[323024454,1713600647248,-8079.94,0.00015068,2]
[323024455,1713600647258,-500.0,0.00015068,2]
[323024456,1713600647268,-500.0,0.00015068,2]
[323024457,1713600647277,-500.0,0.00015068,2]
[323024458,1713600647286,-2444.67,0.00015068,2]
[323024459,1713600647295,-500.0,0.00015068,2]
[323024460,1713600647307,-500.0,0.00015068,2]
[323024461,1713600647316,-500.0,0.00015068,2]
[323024462,1713600647325,-500.0,0.00015068,2]
[323024463,1713600647335,-500.0,0.00015068,2]
[323024464,1713600647344,-500.0,0.00015068,2]
[323024465,1713600647353,-774.37,0.00015068,2]
[323024466,1713600647362,-994.14,0.00015068,2]
[323024467,1713600647371,-1011.8,0.00015068,2]
[323024468,1713600647381,-1797.0,0.00015068,2]
[323024469,1713600647390,-1257.93,0.00015068,2]
[323024470,1713600647400,-500.0,0.00015068,2]
[323024471,1713600647410,-531.68,0.00015068,2]
[323024472,1713600647419,-500.0,0.00015068,2]
[323024473,1713600647429,-770.49,0.00015068,2]
[323024474,1713600647439,-500.0,0.00015068,2]
[323024475,1713600647449,-1234.92,0.00015068,2]
[323024476,1713600647462,-747.04,0.00015068,2]
[323024477,1713600647471,-500.0,0.00015068,2]
[323024478,1713600647481,-506.18,0.00015068,2]
[323024479,1713600647498,-1014.71,0.00015068,2]
[323024480,1713600647508,-623.35,0.00015068,2]
[323024481,1713600647518,-897.79,0.00015068,2]
[323024482,1713600647531,-1279.74,0.00015068,2]
[323024483,1713600647541,-784.16,0.00015068,2]
[323024484,1713600647551,-2375.97,0.00015068,2]
[323024485,1713600647560,-500.0,0.00015068,2]
[323024486,1713600647570,-1989.96,0.00015068,2]
[323024487,1713600647579,-4039.72,0.00015068,2]
[323024488,1713600647589,-671.62,0.00015068,2]
[323024489,1713600647599,-674.6,0.00015068,2]
[323024490,1713600647608,-1666.65,0.00015068,2]
[323024491,1713600647717,-500.0,0.00015068,2]
[323024492,1713600647727,-1247.38,0.00015068,2]
[323024493,1713600647736,-500.0,0.00015068,2]
[323024494,1713600647744,-500.0,0.00015068,2]
[323024495,1713600647754,-500.0,0.00015068,2]
[323024496,1713600647763,-1407.0,0.00015068,2]
[323024497,1713600647772,-1358.81,0.00015068,2]
[323024498,1713600647781,-1815.45,0.00015068,2]
[323024499,1713600647790,-500.0,0.00015068,2]
[323024500,1713600647799,-2528.38,0.00015068,2]
[323024501,1713600647808,-500.0,0.00015068,2]
[323024502,1713600647818,-639.31,0.00015068,2]
[323024503,1713600647827,-500.0,0.00015068,2]
[323024504,1713600647837,-500.0,0.00015068,2]
[323024505,1713600647846,-1382.52,0.00015068,2]
[323024506,1713600647855,-1243.52,0.00015068,2]
[323024507,1713600647865,-500.0,0.00015068,2]
[323024508,1713600647874,-500.0,0.00015068,2]